Cogmind - Beta 13 @@@ ROGUE MODE // 2024.04.06 @ 12:45:09 Player: emory Result: Destroyed by S-10 Pest with Light Assault Rifle Performance ------------- Evolutions (2) 1000 Regions Visited (5) 1000 Robots Destroyed (57) 285 Value Destroyed (1281) 1281 Prototype IDs (1) 20 Alien Tech Used (0) 0 Bonus (0) 0 TOTAL SCORE: 3586 Bonus ------- None Cogmind --------- Core Integrity 0/550 Matter 211/300 Energy 99/100 System Corruption 4% Temperature Cool (0) Movement Core (400) Ox7 Location -8/Materials Parts ------- > --- POWER (1) -------- (None) > --- PROPULSION (3) --- (None) > --- UTILITY (5) ------ Large Storage Unit Signal Interpreter ECM Suite ECM Suite > --- WEAPON (2) ------- (None) > --- INVENTORY (15) --- Heat Sink Heat Sink Visual Processing Unit Sensor Array Peak State ------------ > --- POWER ------------ Light Ion Engine > --- PROPULSION ------- Wheel Compact Wheel Armored Wheel > --- UTILITY ---------- Large Storage Unit Visual Processing Unit Light Armor Plating Light Armor Plating Field Recycling Unit > --- WEAPON ----------- Light Assault Rifle Heavy Assault Rifle > --- INVENTORY -------- Light Ion Engine Deuterium Engine Light Deuterium Engine Armored Wheel Armored Wheel Heat Sink Heat Sink Visual Processing Unit Sensor Array Signal Interpreter Light Armor Plating Light Assault Rifle Heavy Assault Rifle Mini Grenade Launcher [Rating: 17] Favorites ----------- Power Light Ion Engine Engine Light Ion Engine Propulsion Aluminum Leg Treads Light Treads Leg Aluminum Leg Wheel Wheel Flight Unit Improved Flight Unit Utility Large Storage Unit Device Field Recycling Unit Storage Large Storage Unit Processor Visual Processing Unit Protection Light Armor Plating Weapon Light Assault Rifle Ballistic Gun Light Assault Rifle Launcher Grenade Launcher Build | -11 -10 -10 -9 -9 -8 ------- Run | Yrd Mat Min Mat Min Mat Slots Evolved 4 | . . . 2 . 2 Power . | . . . . . . Propulsion 1 | . . . 1 . . Utility 3 | . . . 1 . 2 Weapon . | . . . . . . Parts Attached 46 | 5 1 3 19 . 18 Power 8 | 1 . 1 3 . 3 Engine 8 | 1 . 1 3 . 3 Core . | . . . . . . Reactor . | . . . . . . Propulsion 14 | 2 . 2 7 . 3 Treads 4 | 2 . . 2 . . Leg 2 | . . 2 . . . Wheel 6 | . . . 3 . 3 Hover . | . . . . . . Flight 2 | . . . 2 . . Utility 13 | . 1 . 5 . 7 Device 5 | . . . 2 . 3 Storage 2 | . 1 . 1 . . Processor 2 | . . . 1 . 1 Hackware . | . . . . . . Protection 4 | . . . 1 . 3 Artifact . | . . . . . . Weapon 11 | 2 . . 4 . 5 Energy Gun . | . . . . . . Energy Cannon . | . . . . . . Ballistic Gun 9 | 2 . . 3 . 4 Ballistic Cannon . | . . . . . . Launcher 2 | . . . 1 . 1 Special Weapon . | . . . . . . Impact Weapon . | . . . . . . Slashing Weapon . | . . . . . . Piercing Weapon . | . . . . . . Special Melee Weapon . | . . . . . . Unidentified Prototypes 1 | . . . 1 . . Parts Lost 34 | . . 3 10 . 21 Power 8 | . . 1 3 . 4 Propulsion 10 | . . 1 3 . 6 Utility 6 | . . . 1 . 5 Weapon 10 | . . 1 3 . 6 Highest Loss Streak 10 | . . 3 4 . 10 To Critical Strikes . | . . . . . . Average Slot Usage (%) 75 | . 76 73 74 88 76 Engine 3 | . 14 13 1 11 5 Treads 5 | . 28 26 3 . . Leg 6 | . . 1 10 . . Wheel 6 | . . . 2 33 16 Flight 3 | . . . 4 . . Device 8 | . . . 8 11 11 Storage 10 | . 5 14 11 11 9 Processor 8 | . . . 9 11 9 Protection 2 | . . . 1 . 9 Ballistic Gun 15 | . 28 18 17 . 11 Launcher 3 | . . . 3 11 3 Naked Turns . | . . . . . . Heaviest Build 41 | 6 11 12 37 34 41 Greatest Support 40 | 40 40 40 40 36 38 Greatest Overweight (x) 7 | . . . 7 . 7 Average Overweight (x) . | . . . 1 . 1 Largest Inventory Capacity 15 | 5 8 8 15 15 15 Average Capacity 13 | 5 6 8 14 15 15 Most Carried 15 | 5 6 8 15 14 15 Average Carried 9 | 3 5 6 9 13 11 Final Capacity 15 | 5 8 8 15 15 15 Final Carried 14 | 4 6 5 13 14 4 Class Distribution -------------------- 90% | Mutant 9% | Scavenger-Mutant Dominant Class ---------------- Mutant | -10/Materials Mutant | -10/Mines Mutant | -9/Materials Mutant | -9/Mines Mutant | -8/Materials Resources | -11 -10 -10 -9 -9 -8 ----------- Run | Yrd Mat Min Mat Min Mat Matter Collected 1081 | 248 . 79 478 12 264 Remotely . | . . . . . . Salvage Created 1269 | . . 61 753 15 440 Parts 121 | . . 2 86 3 30 Haulers Intercepted . | . . . . . . Recyclers Shooed 3 | . . . 1 1 1 Parts Field Recycled 18 | . . . 11 2 5 Retrieved Matter 65 | . . . 26 4 35 Parts Self-Destructed . | . . . . . . Prevented . | . . . . . . Kills | -11 -10 -10 -9 -9 -8 ------- Run | Yrd Mat Min Mat Min Mat Combat Hostiles Destroyed 47 | . . 4 24 3 16 Guns 25 | . . 4 14 . 7 AOE 22 | . . . 10 3 9 Classes Destroyed 11 | . . 2 7 . 2 Worker 3 | . . . 3 . . Builder 4 | . . . 3 . 1 Tunneler 3 | . . 1 2 . . Recycler 2 | . . . 2 . . Watcher 2 | . . . 2 . . Swarmer 21 | . . . 13 3 5 Grunt 11 | . . . 5 . 6 Brawler 1 | . . . . . 1 Duelist 1 | . . . . . 1 Sentry 9 | . . . 6 . 3 Assembled 4 | . . 4 . . . Best Kill Streak 12 | . . 4 12 3 8 Combat Bots Only 8 | . . 3 7 3 8 Max Kills in Single Turn 3 | . . 1 3 1 2 Gunslinging 1 | . . . 1 . . Exploded 2 | . . . 2 1 2 Melee . | . . . . . . Uniques/NPCs Destroyed . | . . . . . . Combat | -11 -10 -10 -9 -9 -8 -------- Run | Yrd Mat Min Mat Min Mat Hostile Shots Fired 385 | . . 34 120 5 226 Missed 118 | . . 9 34 1 74 Damage Taken 3850 | . . 728 1101 65 1956 Core 1141 | . . 226 337 23 555 Absorbed by Shields . | . . . . . . Redirected to Shielding 12 | . . . 12 . . Core Remaining (%) 39 | 100 . 9 . 10 . Volleys Fired 172 | . . 22 95 4 51 Largest 2 | . . 2 2 1 2 Hottest 53 | . . 40 50 30 53 Shots Fired 287 | . . 26 178 4 79 Gun 252 | . . 26 158 . 68 Cannon . | . . . . . . Launcher 35 | . . . 20 4 11 Special . | . . . . . . Kinetic 252 | . . 26 158 . 68 Thermal . | . . . . . . Explosive 35 | . . . 20 4 11 Electromagnetic . | . . . . . . Robot Hit Streak 10 | . . 6 6 2 10 Robot Miss Streak 8 | . . 4 8 7 3 Penetration Max . | . . . . . . Secondary Targets 2 | . . . 2 . . Max Gunslinging Chain 1 | . . . 1 . . Shots Hit Robots 167 | . . 17 99 2 49 Core Hits 125 | . . 9 73 2 41 Critical Kills . | . . . . . . Critical Parts Destroyed 3 | . . . 1 . 2 Critical Strikes 3 | . . . 1 . 2 Destroy 3 | . . . 1 . 2 Melee Attacks . | . . . . . . Impact . | . . . . . . Slashing . | . . . . . . Piercing . | . . . . . . Sneak Attacks . | . . . . . . Combat Hostiles . | . . . . . . Follow-up Attacks . | . . . . . . Damage Inflicted 3796 | . . 198 1857 230 1511 Guns 1430 | . . 193 724 . 513 Cannons . | . . . . . . Explosions 2256 | . . . 1119 225 912 Melee . | . . . . . . Ramming 110 | . . 5 14 5 86 Kinetic 1430 | . . 193 724 . 513 Thermal . | . . . . . . Explosive 2256 | . . . 1119 225 912 Electromagnetic . | . . . . . . Impact . | . . . . . . Slashing . | . . . . . . Piercing . | . . . . . . Highest Corruption 7 | . . . 7 7 4 Average Corruption 4 | . . . 7 7 2 Corruption Purged . | . . . . . . Corruption Blocked . | . . . . . . Effects 14 | . . . 4 3 7 Message Errors 1 | . . . . . 1 Matter Fused 2 | . . . 1 1 . Heat Flow Errors 5 | . . . 2 1 2 Energy Discharges 1 | . . . . . 1 Data Loss (minor) 3 | . . . 1 1 1 Misfires 1 | . . . . . 1 Weapon Failures 1 | . . . . . 1 Overload Shots . | . . . . . . Overflow Damage 119 | . . . 15 17 87 Projectiles . | . . . . . . Explosions 111 | . . . 15 17 79 Melee 8 | . . . . . 8 Knockbacks 1 | . . 1 . . . Impact 1 | . . 1 . . . Kinetic . | . . . . . . Secondary . | . . . . . . Self-Inflicted Damage 313 | . . . 20 28 265 Shots 9 | . . . 1 1 7 Rammed 13 | . . . 2 1 10 Targets Rammed 14 | . . 1 2 1 10 Kicked . | . . . . . . Crushed 1 | . . 1 . . . Highest Temperature 269 | . . . 269 182 221 Average Temperature 49 | . . . 58 101 36 Received Heat Transfer 837 | . . . 315 . 522 Siege Activations . | . . . . . . Robots Corrupted . | . . . . . . Combat Hostiles . | . . . . . . Parts Fried . | . . . . . . Impact Corruptions 1 | . . . . . 1 Robots Melted . | . . . . . . Combat Hostiles . | . . . . . . Parts Melted . | . . . . . . Heat Transferred . | . . . . . . Parts Sabotaged . | . . . . . . Parts Stolen . | . . . . . . Parts Stripped . | . . . . . . Power Chain Reactions . | . . . . . . Alert | -11 -10 -10 -9 -9 -8 ------- Run | Yrd Mat Min Mat Min Mat Peak Influence 380 | . . 20 380 238 332 Initial 148 | . . . . 148 92 Average 147 | . . 13 157 194 193 Maximum Alert Level 1 | . . . 1 1 1 Low Security (%) 69 | 100 100 100 66 50 62 Level 1 30 | . . . 33 49 37 Level 2 . | . . . . . . Level 3 . | . . . . . . Level 4 . | . . . . . . Level 5 . | . . . . . . High Security . | . . . . . . Max Security . | . . . . . . Squads Dispatched 9 | . . . 1 . 8 Investigation 1 | . . . . . 1 Extermination . | . . . . . . Reinforcement 5 | . . . 1 . 4 Assault . | . . . . . . Garrison 3 | . . . . . 3 Intercept . | . . . . . . Searches Triggered . | . . . . . . Construction Impeded 2 | . . . . . 2 Haulers Reinforced . | . . . . . . Active Scanning Responses . | . . . . . . Cargo Convoy Interrupts . | . . . . . . Stealth | -11 -10 -10 -9 -9 -8 --------- Run | Yrd Mat Min Mat Min Mat Distress Signals 4 | . . . 2 . 2 Communications Jammed . | . . . . . . Distress Signals . | . . . . . . Times Spotted 91 | . . 6 34 2 49 Peak Tracking Total 12 | . . 4 6 3 12 Tactical Retreats 6 | . . . 1 . 5 Traps | -11 -10 -10 -9 -9 -8 ------- Run | Yrd Mat Min Mat Min Mat Traps Triggered 2 | . . . 1 . 1 Indirectly . | . . . . . . Trap Hack Attempts . | . . . . . . Triggered . | . . . . . . Disarmed . | . . . . . . Reprogrammed . | . . . . . . Reused . | . . . . . . Traps Extracted . | . . . . . . Installed . | . . . . . . Triggered . | . . . . . . Machines | -11 -10 -10 -9 -9 -8 ---------- Run | Yrd Mat Min Mat Min Mat Machines Disabled 3 | . . . 3 . . Max in Single Turn 1 | . . . 1 . . Machines Repaired . | . . . . . . Machines Dismantled . | . . . . . . Machines Sabotaged . | . . . . . . Overloaded Fab Kills . | . . . . . . Hacking | -11 -10 -10 -9 -9 -8 --------- Run | Yrd Mat Min Mat Min Mat Machines Accessed 3 | . . . 1 . 2 Terminals 3 | . . . 1 . 2 Fabricators . | . . . . . . Repair Stations . | . . . . . . Recycling Units . | . . . . . . Scanalyzers . | . . . . . . Garrison Access . | . . . . . . Total Hacks 12 | . . . 4 . 8 Successful 3 | . . . . . 3 Failed 9 | . . . 4 . 5 Catastrophic 3 | . . . 1 . 2 Database Lockouts . | . . . . . . Manual 9 | . . . 4 . 5 Terminals 12 | . . . 4 . 8 Fabricators . | . . . . . . Repair Stations . | . . . . . . Recycling Units . | . . . . . . Scanalyzers . | . . . . . . Garrison Access . | . . . . . . Terminal Hacks 3 | . . . . . 3 Record 3 | . . . . . 3 Fabricator Hacks . | . . . . . . Repair Station Hacks . | . . . . . . Recycling Unit Hacks . | . . . . . . Scanalyzer . | . . . . . . Garrison Access Hacks . | . . . . . . Unauthorized Hacks . | . . . . . . Terminals . | . . . . . . Fabricators . | . . . . . . Repair Stations . | . . . . . . Recycling Units . | . . . . . . Scanalyzers . | . . . . . . Garrison Access . | . . . . . . Data Cores Recovered . | . . . . . . Used . | . . . . . . Hacking Detections 3 | . . . 1 . 2 Full Trace Events 2 | . . . 1 . 1 Feedback Events . | . . . . . . Feedback Blocked . | . . . . . . Robot Schematics Acquired . | . . . . . . Robots Built . | . . . . . . Authchips . | . . . . . . Time . | . . . . . . Total Robot Build Rating . | . . . . . . Part Schematics Acquired . | . . . . . . Parts Built . | . . . . . . Authchips . | . . . . . . Time . | . . . . . . Total Part Build Rating . | . . . . . . Parts Repaired . | . . . . . . Time . | . . . . . . Parts Recycled . | . . . . . . Recycled Matter . | . . . . . . Retrieved Matter . | . . . . . . Retrieved Components . | . . . . . . Parts Scanalyzed . | . . . . . . Part Schematics Acquired . | . . . . . . Parts Damaged . | . . . . . . Bothacking | -11 -10 -10 -9 -9 -8 ------------ Run | Yrd Mat Min Mat Min Mat Used RIF Installer . | . . . . . . Robots Hacked . | . . . . . . Non-combat . | . . . . . . Combat . | . . . . . . Robot Hacks Applied . | . . . . . . Relay Couplers Released . | . . . . . . Fabnet Peak Effective % . | . . . . . . Robots Rewired . | . . . . . . Allies Hacked . | . . . . . . Hacks Repelled . | . . . . . . Allies | -11 -10 -10 -9 -9 -8 -------- Run | Yrd Mat Min Mat Min Mat Total Allies . | . . . . . . Largest Group . | . . . . . . Highest-Rated Group . | . . . . . . Highest-Rated Ally . | . . . . . . Total Orders . | . . . . . . Ally Attacks . | . . . . . . Total Damage . | . . . . . . Kills . | . . . . . . Allies Corrupted . | . . . . . . Allies Melted . | . . . . . . Intel | -11 -10 -10 -9 -9 -8 ------- Run | Yrd Mat Min Mat Min Mat Robot Analysis Total . | . . . . . . Derelict Logs Recovered 1 | . . 1 . . . Drone Launches . | . . . . . . Drone Recoveries . | . . . . . . Exploration | -11 -10 -10 -9 -9 -8 ------------- Run | Yrd Mat Min Mat Min Mat Turns Passed 3142 | 69 105 210 2039 105 614 Spaces Moved 1580 | 39 64 100 889 111 377 Core 31 | 6 . . 22 . 3 Treads 362 | 33 64 90 175 . . Legs 362 | . . 10 352 . . Wheels 657 | . . . 172 111 374 Hover . | . . . . . . Flight 168 | . . . 168 . . Fastest Speed 50 | 50 160 120 86 86 90 Average Speed 148 | 143 160 156 172 86 109 Slowest Speed 460 | 160 160 160 460 86 400 Overloaded Moves . | . . . . . . Propulsion Burnouts . | . . . . . . Robots Hopped . | . . . . . . Cave-ins Triggered . | . . . . . . Exploration Rate (%) 28 | 5 14 40 46 33 33 Regions Visited 5 Branch Regions 2 Pre-discovered Areas 1 | . . 1 . . . Known Exits Taken . | . . . . . . Unknown Exits Taken 5 | 1 1 1 1 1 . Scrap Searched 1 | . . 1 . . . Spaces Dug . | . . . . . . Terrain Destroyed 227 | . . . 95 21 111 Melee . | . . . . . . Projectile . | . . . . . . AOE 227 | . . . 95 21 111 Terrain Rammed . | . . . . . . Walls Destroyed . | . . . . . . Machines Disabled . | . . . . . . Actions | -11 -10 -10 -9 -9 -8 --------- Run | Yrd Mat Min Mat Min Mat Total 2125 | 52 67 128 1251 116 511 Wait 261 | . . . 215 . 46 Move 1575 | 38 63 99 888 110 377 Hop . | . . . . . . Pick Up 50 | 9 3 2 27 1 8 Fast Attach . | . . . . . . Attach 45 | 5 1 3 18 . 18 Detach . | . . . . . . Swap 1 | . . . 1 . . Drop 7 | . . 1 5 . 1 Fire 172 | . . 22 95 4 51 Melee . | . . . . . . Ram 13 | . . . 2 1 10 Kick . | . . . . . . Crush 1 | . . 1 . . . Escape Stasis . | . . . . . . Rewire . | . . . . . . Trap . | . . . . . . Miscellaneous . | . . . . . . Route ------- -11/Scrapyard -10/Materials -10/Mines -9/Materials -9/Mines -8/Materials History --------- Turn | Location | Event 13 | -11/Scrapyard | Discovered new exit (range 15) 70 | -11/Scrapyard | Entered Materials 95 | -10/Materials | Discovered new exit (range 13) 175 | -10/Materials | Entered Mines 213 | -10/Mines | Assembled infested the area 304 | -10/Mines | Learned location of Zion (-7) 308 | -10/Mines | Build established: Mutant 365 | -10/Mines | Discovered new exit (range 13) 367 | -10/Mines | Core integrity fell below 50% 384 | -10/Mines | Core integrity fell below 20% 385 | -10/Mines | Entered Materials 385 | -9/Materials | Evolved 2 slots: Propulsion x1, Utility x1 408 | -9/Materials | Lost 3 parts (1p1n1w) 1331 | -9/Materials | Core integrity fell below 50% 1358 | -9/Materials | Lost 4 parts (2n1u1w) 1765 | -9/Materials | Destroyed 7 combat bots 1982 | -9/Materials | Core integrity fell below 20% 2401 | -9/Materials | Discovered new exit (range 11) 2424 | -9/Materials | Entered Mines 2523 | -9/Mines | Discovered new exit (range 9) 2529 | -9/Mines | Entered Materials 2529 | -8/Materials | Evolved 2 slots: Utility x2 2795 | -8/Materials | Garrison activated, responded to threat 2824 | -8/Materials | Build established: Scavenger-Mutant 2873 | -8/Materials | Destroyed 8 combat bots 2877 | -8/Materials | Lost 5 parts (1p1n2u1w) 3049 | -8/Materials | Core integrity fell below 50% 3103 | -8/Materials | Core integrity fell below 20% 3140 | -8/Materials | Build established: Mutant 3143 | -8/Materials | Destroyed by S-10 Pest with Light Assault Rifle Last Messages --------------- Slammed into Y-45 Defender. Destabilizing: System corrupted (+1). ECM Suite destroyed. T-07 Excavator is excavating. K-01 Serf collects debris. Arm. Wheel destroyed. T-07 Excavator is excavating. Slammed into U-05 Engineer. Signal Interpreter broken. Destabilizing: Short circuit. ALERT: Construction progress impeded, dispatching reinforcements to local area. Lgt. Ion Engine destroyed. O,A/DZACMOFYZPC&Z YCTT T O-16 Technician: "IFF HANDSHAKE FAILED. SECURING TERMINAL." O-16 Technician sends out distress signal. ALERT: Hostiles spotted, dispatching reinforcements to Terminal M009. Arm. Wheel destroyed. Map ----- +----------------------------------------------------+ | # #????### ###????????????#= [ | | # #????# #????????????#%= ! | | # ###### #????????????#/### | | # / T ##############=#?? | | # ###### #?? | | # #????# ##### #?? | | ?#####/#????###/####??# #?? | | ?????# #????#! / #??# "T" #?? | | ?????# #????# #??# """ #?? | | ?????# #????# """ #??# #?? | | ?????# #????# """ /#??# | | ?????# ####?# """ #??#### ######### | | ?????# # #?# #?????# #???????? | | ?????# #??########?????# #???????? | | ?????# ###???????????????# #???????? | | ####?# #?????????????????? ????????? | | #]! ?# #???????????????????????????? | | #]] # #?????????????????????????### | | # # #?????????????????????????# | | # + #?????????????????????????# | | # # #??#######????????????????# | | #" !# #### #????????????????# | | #T ?#ss ###t#????????????#! | | #" *?# s s #????????????# | | # ??# t####?????????????# | | ###??###/##@ #????????????????# | | ??????? ### ###????????????????# | | ??????? ????#??????????????????### | | ??????!! #??????????????????????# | | ??????!! #??????????????????????# | | ????? ! #??????????????????????# | | ????? = #??????????????????????# | | ????#######??????????????????????# | | ?????????????????????????????????# | | ?????????????????????????????????# | | ?????????????????????????????????# | | ?????????????????????????????????# | | ?????????????????????????????????### | | ???????????????????????????????????? | | ???????????????????????????????????? | | ???????????????????????????????????? | | ???????????????????????????????????? | | ???????????????????????????????????? | | ???????????????????????????????????? | | ???????????????????????????????????? | | ???????????????????????????????????? | | ???????????????????????????????????? | | ???????????????????????????????????? | | ???????????????????????????????????? | | ???????????????????????????????????? | +----------------------------------------------------+ Best States ------------- Heat Dissipation 31 Energy Generation 14 Energy Capacity 275 Matter Stores 300 Matter Capacity 300 Sight Range 18 Terrain Scan Density 10 ECM Strength 3 Armor Coverage 300 Core Shielding 20 Evasion (%) 50 Recoil Reduction 2 Item Schematics ----------------- None Robot Schematics ------------------ None Fabricated ------------ Nothing Alien Tech Used ----------------- None Achievements -------------- I Survived The Infestation Challenges ------------ None Game ------ Seed LayeredFireStripper Manual? 0 Play Time 00:45:28 Cumulative 7.2 hours Start 2024.04.06 @ 11:56:48 End 2024.04.06 @ 12:45:09 Sessions 1 Manual Loads 0 Difficulty Rogue Special Mode None Game No. 15 Rogue 15 Adventurer 0 Explorer 0 Win Type - Total 0 Types 0/0/0/0/0/0/0/0/0 Lore% 4 Gallery% 10 Achievement% 9 Wizard Run 0 Options --------- Layout 1 ASCII 1 Keyboard 0 Movement Mouse Keybinds 0 Fullscreen 1 Font 16/SmallcapsGlow Map View 50x35 Zoom Use 0% Tactical HUD 0 Map Filters NONE Filters NONE Steam SD RUN: ee67c7e1-1b70-4b0e-babb-8f4a674ee121